[Event "Chess Stars Match"]
[Site "Teatro Capri, Paterna, Spain"]
[Date "2019.12.15"]
[Round "9.5"]
[White "Povshednyi, Ivan"]
[Black "Semenova, Elena"]
[Result "0-1"]
[TimeControl "7m+3s"]
[BlackTitle "WIM"]
[WhiteFideId "14190907"]
[BlackFideId "24125148"]
[WhiteElo "1795"]
[BlackElo "2290"]

1. e4 {[%clk 00:06:05]} e5 {[%clk 00:04:06]} 2. d4 {[%clk 00:06:07]} {[%emt
00:00:01]} exd4 {[%clk 00:04:07]} {[%emt 00:00:01]} 3. c3 {[%clk 00:06:09]} Nf6
{[%clk 00:04:09]} {[%emt 00:00:02]} 4. e5 {[%clk 00:06:08]} {[%emt 00:00:05]}
Nd5 {[%clk 00:04:09]} {[%emt 00:00:03]} 5. Nf3 {[%clk 00:06:07]} {[%emt
00:00:04]} d6 {[%clk 00:04:07]} {[%emt 00:00:05]} 6. cxd4 {[%clk 00:06:00]}
{[%emt 00:00:10]} dxe5 {[%clk 00:04:07]} {[%emt 00:00:02]} 7. dxe5 {[%clk
00:05:59]} {[%emt 00:00:04]} Nc6 {[%clk 00:04:00]} {[%emt 00:00:10]} 8. Be2
{[%clk 00:05:44]} {[%emt 00:00:17]} Bf5 {[%clk 00:03:54]} {[%emt 00:00:09]} 9.
O-O {[%clk 00:05:37]} {[%emt 00:00:10]} Be7 {[%clk 00:03:46]} {[%emt 00:00:11]}
10. Nbd2 {[%clk 00:05:00]} {[%emt 00:00:40]} O-O {[%clk 00:03:36]} {[%emt
00:00:13]} 11. Nc4 {[%clk 00:04:59]} {[%emt 00:00:05]} Ndb4 {[%clk 00:03:27]}
{[%emt 00:00:12]} 12. Bf4 {[%clk 00:04:48]} {[%emt 00:00:12]} Nd3 {[%clk
00:03:21]} {[%emt 00:00:11]} 13. Bg3 {[%clk 00:04:41]} {[%emt 00:00:09]} Bg6
{[%clk 00:02:39]} {[%emt 00:00:45]} 14. Ne1 {[%clk 00:04:05]} {[%emt 00:00:39]}
Nxe1 {[%clk 00:02:27]} {[%emt 00:00:16]} 15. Rxe1 {[%clk 00:04:07]} {[%emt
00:00:01]} Qxd1 {[%clk 00:02:12]} {[%emt 00:00:18]} 16. Raxd1 {[%clk 00:04:07]}
{[%emt 00:00:03]} Rfd8 {[%clk 00:02:14]} {[%emt 00:00:02]} 17. Rxd8+ {[%clk
00:04:04]} {[%emt 00:00:06]} Rxd8 {[%clk 00:02:14]} {[%emt 00:00:02]} 18. Rd1
{[%clk 00:04:06]} {[%emt 00:00:01]} Nd4 {[%clk 00:02:02]} {[%emt 00:00:16]} 19.
Kf1 {[%clk 00:03:31]} {[%emt 00:00:37]} Bc2 {[%clk 00:01:53]} {[%emt 00:00:12]}
20. Rd2 {[%clk 00:03:24]} {[%emt 00:00:10]} Bb4 {[%clk 00:01:27]} {[%emt
00:00:30]} 21. Rxc2 {[%clk 00:03:04]} {[%emt 00:00:23]} Nxc2 {[%clk 00:01:27]}
{[%emt 00:00:02]} 22. a3 {[%clk 00:03:01]} {[%emt 00:00:06]} Be7 {[%clk
00:01:24]} {[%emt 00:00:06]} 23. f4 {[%clk 00:02:57]} {[%emt 00:00:07]} Nd4
{[%clk 00:01:15]} {[%emt 00:00:12]} 24. Bf2 {[%clk 00:02:41]} {[%emt 00:00:17]}
Nxe2 {[%clk 00:01:16]} {[%emt 00:00:03]} 25. Kxe2 {[%clk 00:02:43]} {[%emt
00:00:01]} b6 {[%clk 00:01:13]} {[%emt 00:00:06]} 26. Ne3 {[%clk 00:02:42]}
{[%emt 00:00:03]} Bc5 {[%clk 00:01:05]} {[%emt 00:00:12]} 27. Ng4 {[%clk
00:02:31]} {[%emt 00:00:14]} Bxf2 28. Nxf2 {[%clk 00:02:34]} Kf8 {[%clk
00:01:07]} {[%emt 00:00:02]} 29. Ne4 {[%clk 00:02:35]} {[%emt 00:00:01]} Ke7
{[%clk 00:01:09]} {[%emt 00:00:02]} 30. g3 {[%clk 00:02:35]} {[%emt 00:00:02]}
h6 {[%clk 00:01:10]} {[%emt 00:00:03]} 31. Nc3 {[%clk 00:02:36]} {[%emt
00:00:02]} a6 {[%clk 00:01:09]} {[%emt 00:00:04]} 32. Ke3 {[%clk 00:02:36]}
{[%emt 00:00:02]} Ke6 {[%clk 00:01:11]} {[%emt 00:00:02]} 33. Ke2 {[%clk
00:02:36]} {[%emt 00:00:02]} b5 {[%clk 00:00:58]} {[%emt 00:00:17]} 34. Ne4
{[%clk 00:02:33]} {[%emt 00:00:04]} Kd5 {[%clk 00:00:58]} {[%emt 00:00:04]} 35.
Nd2 {[%clk 00:02:30]} {[%emt 00:00:06]} Kd4 {[%clk 00:00:51]} {[%emt 00:00:10]}
36. Nb3+ {[%clk 00:02:22]} {[%emt 00:00:12]} Kc4 {[%clk 00:00:45]} {[%emt
00:00:09]} 37. Na5+ {[%clk 00:02:08]} {[%emt 00:00:17]} Kd5 {[%clk 00:00:44]}
{[%emt 00:00:04]} 38. Nb3 {[%clk 00:02:10]} c5 {[%clk 00:00:45]} {[%emt
00:00:02]} 39. Nd2 {[%clk 00:02:12]} a5 {[%clk 00:00:42]} {[%emt 00:00:06]} 40.
Ke3 {[%clk 00:02:12]} {[%emt 00:00:03]} a4 {[%clk 00:00:45]} 41. Ne4 {[%clk
00:02:12]} {[%emt 00:00:03]} b4 {[%clk 00:00:37]} {[%emt 00:00:10]} 42. Nd2
{[%clk 00:02:09]} {[%emt 00:00:06]} Rb8 {[%clk 00:00:38]} {[%emt 00:00:03]} 43.
h3 {[%clk 00:01:42]} {[%emt 00:00:29]} c4 {[%clk 00:00:37]} {[%emt 00:00:04]}
44. axb4 {[%clk 00:01:38]} {[%emt 00:00:06]} Rxb4 {[%clk 00:00:39]} {[%emt
00:00:02]} 45. Nb1 {[%clk 00:01:39]} {[%emt 00:00:02]} Rb3+ {[%emt 00:00:13]}
46. Kd2 {[%clk 00:01:33]} {[%emt 00:00:04]} Rxb2+ {[%clk 00:00:32]} {[%emt
00:00:05]} 47. Kc1 {[%clk 00:01:34]} {[%emt 00:00:02]} Rg2 {[%clk 00:00:23]}
{[%emt 00:00:12]} 48. Nc3+ {[%clk 00:01:36]} {[%emt 00:00:01]} Kd4 {[%clk
00:00:24]} {[%emt 00:00:02]} 49. Nxa4 {[%clk 00:01:36]} {[%emt 00:00:03]} Rxg3
{[%clk 00:00:26]} {[%emt 00:00:01]} 50. Kd2 {[%clk 00:01:37]} {[%emt 00:00:01]}
Rxh3 {[%clk 00:00:26]} {[%emt 00:00:02]} 51. Nb6 {[%clk 00:01:38]} {[%emt
00:00:02]} Rh2+ {[%clk 00:00:28]} 52. Kc1 {[%clk 00:01:40]} {[%emt 00:00:02]}
c3 {[%clk 00:00:28]} {[%emt 00:00:02]} 53. Na4 {[%clk 00:01:38]} {[%emt
00:00:05]} h5 {[%clk 00:00:29]} {[%emt 00:00:02]} 54. Nb6 {[%clk 00:01:40]}
{[%emt 00:00:02]} Kd3 {[%clk 00:00:30]} {[%emt 00:00:02]} 55. Kb1 {[%clk
00:01:39]} {[%emt 00:00:04]} c2+ {[%clk 00:00:31]} {[%emt 00:00:02]} 56. Kb2
{[%clk 00:01:41]} Rh1 {[%clk 00:00:31]} {[%emt 00:00:02]} 57. Kb3 {[%clk
00:01:40]} {[%emt 00:00:04]} c1=Q {[%clk 00:00:32]} {[%emt 00:00:03]} 58. Nd5
{[%clk 00:01:40]} {[%emt 00:00:03]} Qc4+ {[%clk 00:00:33]} {[%emt 00:00:02]} 59.
Kb2 {[%clk 00:01:41]} {[%emt 00:00:01]} Rh2+ {[%clk 00:00:34]} {[%emt
00:00:01]} 60. Ka1 {[%clk 00:01:43]} {[%emt 00:00:01]} Qc1# {[%clk 00:00:36]}
{[%emt 00:00:02]} 0-1

[Event "Chess Stars Match"]
[Site "Teatro Capri, Paterna, Spain"]
[Date "2019.12.15"]
[Round "10.1"]
[White "Macias Pino, Diego"]
[Black "Howell, David W L"]
[Result "0-1"]
[TimeControl "7m+3s"]
[BlackTitle "GM"]
[WhiteFideId "24529133"]
[BlackFideId "410608"]
[WhiteElo "2161"]
[BlackElo "2676"]

1. e4 {[%clk 00:06:05]} c6 {[%clk 00:03:03]} {[%emt 00:00:03]} 2. d4 {[%clk
00:06:06]} {[%emt 00:00:02]} d5 {[%clk 00:03:05]} {[%emt 00:00:01]} 3. Nc3
{[%clk 00:06:05]} {[%emt 00:00:04]} dxe4 {[%clk 00:03:07]} {[%emt 00:00:02]} 4.
Nxe4 {[%clk 00:06:06]} {[%emt 00:00:01]} Nf6 {[%clk 00:03:08]} {[%emt
00:00:01]} 5. Nxf6+ {[%clk 00:06:07]} {[%emt 00:00:02]} exf6 {[%clk 00:03:09]}
{[%emt 00:00:02]} 6. c3 {[%clk 00:06:08]} {[%emt 00:00:02]} Bd6 {[%clk
00:03:11]} {[%emt 00:00:01]} 7. Bd3 {[%clk 00:06:08]} {[%emt 00:00:03]} O-O
{[%clk 00:03:10]} {[%emt 00:00:04]} 8. Ne2 {[%clk 00:06:09]} {[%emt 00:00:02]}
Re8 {[%clk 00:03:12]} {[%emt 00:00:02]} 9. O-O {[%clk 00:05:50]} {[%emt
00:00:22]} Qc7 {[%clk 00:02:45]} {[%emt 00:00:30]} 10. Ng3 {[%clk 00:05:51]}
{[%emt 00:00:02]} Nd7 {[%clk 00:02:43]} {[%emt 00:00:05]} 11. f4 {[%clk
00:05:09]} {[%emt 00:00:44]} c5 {[%clk 00:02:02]} {[%emt 00:00:44]} 12. Nf5
{[%clk 00:04:25]} {[%emt 00:00:47]} cxd4 {[%clk 00:01:36]} {[%emt 00:00:29]} 13.
cxd4 {[%clk 00:03:57]} {[%emt 00:00:31]} Nf8 {[%clk 00:01:20]} {[%emt
00:00:19]} 14. Nxd6 {[%clk 00:03:00]} {[%emt 00:01:01]} Qxd6 {[%clk 00:01:21]}
{[%emt 00:00:01]} 15. Kh1 {[%clk 00:03:01]} {[%emt 00:00:01]} Bd7 {[%clk
00:00:54]} {[%emt 00:00:31]} 16. Bd2 {[%clk 00:02:34]} {[%emt 00:00:30]} Bc6
{[%clk 00:00:49]} {[%emt 00:00:08]} 17. Bc3 {[%clk 00:02:17]} {[%emt 00:00:20]}
Qd5 {[%clk 00:00:44]} {[%emt 00:00:08]} 18. Qg4 {[%clk 00:01:56]} {[%emt
00:00:24]} Re3 {[%clk 00:00:33]} {[%emt 00:00:14]} 19. Bc2 {[%clk 00:01:00]}
{[%emt 00:00:59]} h5 {[%clk 00:00:26]} {[%emt 00:00:09]} 0-1

[Event "Chess Stars Match"]
[Site "Teatro Capri, Paterna, Spain"]
[Date "2019.12.15"]
[Round "10.2"]
[White "Vallejo Pons, Francisco"]
[Black "Hamitevici, Vladimir"]
[Result "1/2-1/2"]
[TimeControl "7m+3s"]
[WhiteTitle "GM"]
[BlackTitle "GM"]
[WhiteFideId "2205530"]
[BlackFideId "13902393"]
[WhiteElo "2704"]
[BlackElo "2453"]

1. d4 {[%clk 00:03:05]} Nf6 {[%clk 00:03:04]} {[%emt 00:00:02]} 2. c4 {[%clk
00:03:06]} {[%emt 00:00:02]} e6 {[%clk 00:03:03]} {[%emt 00:00:04]} 3. Nc3
{[%clk 00:03:07]} {[%emt 00:00:02]} Bb4 {[%clk 00:03:05]} 4. Qc2 {[%clk
00:03:09]} {[%emt 00:00:03]} O-O {[%clk 00:02:52]} {[%emt 00:00:16]} 5. e4
{[%clk 00:03:11]} {[%emt 00:00:02]} d5 {[%clk 00:02:36]} {[%emt 00:00:19]} 6.
e5 {[%clk 00:03:12]} {[%emt 00:00:02]} Ne4 {[%clk 00:02:34]} {[%emt 00:00:04]}
7. Bd3 {[%clk 00:03:12]} {[%emt 00:00:03]} c5 {[%clk 00:02:32]} {[%emt
00:00:06]} 8. Nf3 {[%clk 00:03:13]} {[%emt 00:00:02]} cxd4 {[%clk 00:02:30]}
{[%emt 00:00:05]} 9. Nxd4 {[%clk 00:03:13]} {[%emt 00:00:02]} Nd7 {[%clk
00:02:23]} {[%emt 00:00:10]} 10. Bf4 {[%clk 00:03:11]} {[%emt 00:00:05]} Ndc5
{[%clk 00:02:17]} {[%emt 00:00:09]} 11. O-O {[%clk 00:02:57]} {[%emt 00:00:17]}
Nxd3 {[%clk 00:01:55]} {[%emt 00:00:25]} 12. Qxd3 {[%clk 00:02:57]} {[%emt
00:00:03]} Nc5 {[%clk 00:01:55]} {[%emt 00:00:03]} 13. Qg3 {[%clk 00:02:36]}
{[%emt 00:00:24]} Bxc3 {[%clk 00:01:26]} {[%emt 00:00:32]} 14. Bh6 {[%clk
00:02:01]} {[%emt 00:00:37]} g6 {[%clk 00:01:28]} {[%emt 00:00:01]} 15. bxc3
{[%clk 00:01:42]} {[%emt 00:00:23]} Re8 {[%clk 00:01:30]} 16. Rad1 {[%clk
00:01:25]} {[%emt 00:00:20]} f6 {[%clk 00:01:24]} {[%emt 00:00:09]} 17. f3
{[%clk 00:00:51]} {[%emt 00:00:37]} Bd7 {[%clk 00:01:06]} {[%emt 00:00:20]} 18.
h4 {[%clk 00:00:23]} {[%emt 00:00:32]} Qe7 {[%clk 00:01:05]} {[%emt 00:00:04]}
19. Bf4 {[%clk 00:00:21]} {[%emt 00:00:05]} dxc4 {[%clk 00:00:49]} {[%emt
00:00:20]} 20. h5 {[%clk 00:00:18]} {[%emt 00:00:06]} Nd3 {[%emt 00:00:13]} 21.
hxg6 {[%clk 00:00:17]} hxg6 {[%clk 00:00:44]} {[%emt 00:00:01]} 22. Qxg6+
{[%clk 00:00:05]} {[%emt 00:00:15]} Qg7 {[%clk 00:00:46]} 23. Qxg7+ Kxg7 {[%clk
00:00:48]} 24. exf6+ {[%clk 00:00:09]} {[%emt 00:00:01]} Kxf6 {[%clk 00:00:47]}
{[%emt 00:00:04]} 25. Be3 {[%clk 00:00:10]} {[%emt 00:00:02]} e5 {[%clk
00:00:43]} {[%emt 00:00:06]} 26. Ne2 {[%clk 00:00:10]} {[%emt 00:00:04]} Rg8
{[%clk 00:00:40]} {[%emt 00:00:05]} 27. Nc1 {[%clk 00:00:06]} {[%emt 00:00:07]}
Ba4 {[%clk 00:00:33]} {[%emt 00:00:10]} 28. Rd2 {[%clk 00:00:05]} {[%emt
00:00:05]} Ke6 {[%clk 00:00:13]} {[%emt 00:00:23]} 29. Nxd3 {[%clk 00:00:05]}
{[%emt 00:00:03]} cxd3 {[%clk 00:00:15]} {[%emt 00:00:01]} 30. Rb1 {[%clk
00:00:07]} {[%emt 00:00:01]} Bc6 {[%clk 00:00:13]} {[%emt 00:00:04]} 31. Rxd3
{[%clk 00:00:06]} {[%emt 00:00:04]} Bxf3 {[%clk 00:00:14]} {[%emt 00:00:02]} 32.
Rd2 {[%clk 00:00:07]} {[%emt 00:00:02]} Bc6 {[%clk 00:00:11]} {[%emt 00:00:06]}
33. Re1 {[%clk 00:00:08]} {[%emt 00:00:02]} a6 {[%clk 00:00:07]} {[%emt
00:00:07]} 34. Bf4 {[%clk 00:00:07]} {[%emt 00:00:04]} e4 {[%clk 00:00:06]}
{[%emt 00:00:04]} 35. Rd6+ {[%clk 00:00:08]} {[%emt 00:00:02]} Ke7 {[%clk
00:00:08]} 36. Rh6 {[%clk 00:00:07]} {[%emt 00:00:04]} Rae8 {[%clk 00:00:05]}
{[%emt 00:00:06]} 37. Re3 {[%clk 00:00:06]} {[%emt 00:00:04]} Kf7 {[%clk
00:00:06]} {[%emt 00:00:02]} 38. Kf2 {[%clk 00:00:06]} {[%emt 00:00:03]} Rg6
{[%clk 00:00:07]} {[%emt 00:00:02]} 39. Rh7+ {[%clk 00:00:07]} {[%emt
00:00:02]} Rg7 {[%clk 00:00:09]} {[%emt 00:00:01]} 40. Rh6 {[%clk 00:00:07]}
{[%emt 00:00:03]} Rd8 {[%clk 00:00:10]} {[%emt 00:00:02]} 41. Rg3 {[%clk
00:00:06]} {[%emt 00:00:04]} Rd3 {[%clk 00:00:07]} {[%emt 00:00:06]} 42. Rxg7+
{[%clk 00:00:06]} {[%emt 00:00:03]} Kxg7 {[%clk 00:00:09]} {[%emt 00:00:01]} 43.
Rh3 {[%clk 00:00:06]} {[%emt 00:00:02]} Kg6 {[%clk 00:00:08]} {[%emt 00:00:03]}
44. Rxd3 {[%emt 00:00:02]} 1/2-1/2

[Event "Chess Stars Match"]
[Site "Teatro Capri, Paterna, Spain"]
[Date "2019.12.15"]
[Round "10.3"]
[White "Arizmendi Martinez, Julen Luis"]
[Black "Injac, Teodora"]
[Result "0-1"]
[TimeControl "7m+3s"]
[WhiteTitle "GM"]
[BlackTitle "WIM"]
[WhiteFideId "2205092"]
[BlackFideId "932400"]
[WhiteElo "2511"]
[BlackElo "2284"]

1. e4 {[%clk 00:03:05]} {[%emt 00:01:57]} e6 {[%clk 00:04:05]} {[%emt
00:00:02]} 2. d4 {[%clk 00:03:06]} {[%emt 00:00:02]} d5 {[%clk 00:04:07]} 3.
Nd2 {[%clk 00:03:08]} {[%emt 00:00:01]} a6 {[%clk 00:03:59]} {[%emt 00:00:12]}
4. Ngf3 {[%clk 00:03:04]} {[%emt 00:00:07]} c5 {[%clk 00:04:00]} {[%emt
00:00:02]} 5. dxc5 {[%clk 00:02:57]} {[%emt 00:00:10]} Bxc5 {[%clk 00:04:01]}
{[%emt 00:00:02]} 6. Bd3 {[%clk 00:02:57]} {[%emt 00:00:03]} Nc6 {[%clk
00:04:00]} {[%emt 00:00:04]} 7. O-O {[%clk 00:02:43]} {[%emt 00:00:17]} Nf6
{[%clk 00:04:01]} {[%emt 00:00:02]} 8. c3 {[%clk 00:02:16]} {[%emt 00:00:31]}
dxe4 {[%clk 00:02:51]} {[%emt 00:01:13]} 9. Nxe4 {[%clk 00:02:17]} {[%emt
00:00:02]} Nxe4 {[%clk 00:02:52]} {[%emt 00:00:01]} 10. Bxe4 {[%clk 00:02:19]}
{[%emt 00:00:01]} Qxd1 11. Rxd1 {[%clk 00:02:21]} Bd7 {[%clk 00:02:23]} {[%emt
00:00:26]} 12. Bf4 {[%clk 00:02:11]} {[%emt 00:00:14]} f6 {[%clk 00:01:10]}
{[%emt 00:01:16]} 13. Bd6 {[%clk 00:02:12]} {[%emt 00:00:02]} Bxd6 {[%clk
00:01:06]} {[%emt 00:00:07]} 14. Rxd6 {[%clk 00:02:13]} {[%emt 00:00:02]} Ke7
{[%clk 00:01:03]} {[%emt 00:00:06]} 15. Rad1 {[%clk 00:02:14]} {[%emt
00:00:02]} Rad8 {[%clk 00:01:01]} {[%emt 00:00:05]} 16. Ne1 {[%clk 00:01:39]}
{[%emt 00:00:38]} e5 {[%clk 00:00:37]} {[%emt 00:00:27]} 17. Nc2 {[%clk
00:01:33]} {[%emt 00:00:09]} Be6 {[%clk 00:00:34]} {[%emt 00:00:06]} 18. Rxd8
{[%clk 00:01:32]} {[%emt 00:00:04]} Rxd8 {[%clk 00:00:36]} 19. Rxd8 {[%clk
00:01:32]} {[%emt 00:00:02]} Nxd8 {[%clk 00:00:27]} {[%emt 00:00:12]} 20. a3
{[%clk 00:01:06]} {[%emt 00:00:29]} f5 {[%clk 00:00:27]} {[%emt 00:00:02]} 21.
Bf3 {[%clk 00:01:03]} {[%emt 00:00:06]} Kd6 {[%clk 00:00:27]} {[%emt 00:00:03]}
22. Kf1 {[%clk 00:00:56]} {[%emt 00:00:11]} Nc6 {[%clk 00:00:22]} {[%emt
00:00:08]} 23. Ke1 {[%clk 00:00:44]} {[%emt 00:00:14]} g6 {[%clk 00:00:16]}
{[%emt 00:00:10]} 24. Nb4 {[%clk 00:00:39]} {[%emt 00:00:08]} Nxb4 {[%clk
00:00:12]} {[%emt 00:00:07]} 25. axb4 {[%clk 00:00:41]} {[%emt 00:00:01]} Bd5
{[%clk 00:00:13]} {[%emt 00:00:02]} 26. Ke2 {[%clk 00:00:32]} {[%emt 00:00:12]}
e4 {[%clk 00:00:08]} {[%emt 00:00:08]} 27. Ke3 {[%clk 00:00:26]} {[%emt
00:00:09]} exf3 {[%clk 00:00:09]} {[%emt 00:00:02]} 28. gxf3 {[%clk 00:00:28]}
{[%emt 00:00:01]} Ke5 {[%clk 00:00:09]} {[%emt 00:00:03]} 29. f4+ {[%clk
00:00:30]} {[%emt 00:00:01]} Kd6 {[%clk 00:00:12]} 30. Kd4 {[%clk 00:00:32]}
{[%emt 00:00:01]} h6 {[%clk 00:00:10]} {[%emt 00:00:05]} 31. c4 {[%clk
00:00:26]} {[%emt 00:00:08]} Bg2 {[%clk 00:00:11]} {[%emt 00:00:02]} 32. h4
{[%clk 00:00:28]} {[%emt 00:00:01]} b6 {[%clk 00:00:11]} {[%emt 00:00:03]} 33.
Kc3 {[%clk 00:00:24]} {[%emt 00:00:07]} Kc6 {[%clk 00:00:09]} {[%emt 00:00:05]}
34. Kd4 {[%clk 00:00:25]} {[%emt 00:00:01]} a5 {[%clk 00:00:09]} {[%emt
00:00:03]} 35. Kc3 {[%clk 00:00:11]} {[%emt 00:00:17]} Bf3 {[%clk 00:00:11]}
{[%emt 00:00:01]} 36. Kb3 {[%clk 00:00:12]} {[%emt 00:00:02]} Be2 {[%emt
00:00:03]} 37. Kc3 {[%clk 00:00:14]} Bf1 {[%clk 00:00:13]} 38. Kb3 {[%clk
00:00:14]} {[%emt 00:00:03]} axb4 {[%clk 00:00:08]} {[%emt 00:00:08]} 39. Kxb4
{[%clk 00:00:16]} {[%emt 00:00:01]} b5 {[%clk 00:00:11]} 40. b3 {[%clk
00:00:10]} {[%emt 00:00:10]} bxc4 {[%clk 00:00:11]} {[%emt 00:00:02]} 41. bxc4
{[%clk 00:00:12]} Kb6 {[%clk 00:00:13]} {[%emt 00:00:02]} 0-1

[Event "Chess Stars Match"]
[Site "Teatro Capri, Paterna, Spain"]
[Date "2019.12.15"]
[Round "10.4"]
[White "Semenova, Elena"]
[Black "Randazzo, Adrian"]
[Result "1-0"]
[TimeControl "7m+3s"]
[WhiteTitle "WIM"]
[BlackTitle "FM"]
[WhiteFideId "24125148"]
[BlackFideId "114251"]
[WhiteElo "2290"]
[BlackElo "2230"]

1. e4 {[%clk 00:04:05]} c5 {[%clk 00:04:05]} {[%emt 00:00:02]} 2. Nf3 {[%clk
00:04:07]} d6 {[%clk 00:04:06]} {[%emt 00:00:02]} 3. d4 {[%clk 00:04:09]} cxd4
{[%clk 00:04:07]} {[%emt 00:00:01]} 4. Qxd4 {[%clk 00:04:10]} {[%emt 00:00:01]}
a6 {[%clk 00:04:10]} 5. c4 {[%clk 00:04:06]} {[%emt 00:00:08]} Nc6 {[%clk
00:04:11]} {[%emt 00:00:02]} 6. Qe3 {[%clk 00:04:08]} g6 {[%clk 00:04:13]} 7.
Be2 {[%clk 00:04:07]} {[%emt 00:00:04]} Bg7 {[%clk 00:04:08]} {[%emt 00:00:08]}
8. O-O {[%clk 00:04:06]} {[%emt 00:00:05]} Nf6 {[%clk 00:04:08]} {[%emt
00:00:02]} 9. h3 {[%clk 00:04:08]} {[%emt 00:00:01]} O-O {[%clk 00:04:08]}
{[%emt 00:00:04]} 10. Rd1 {[%clk 00:04:10]} {[%emt 00:00:01]} Nd7 {[%clk
00:04:08]} {[%emt 00:00:03]} 11. Nc3 {[%clk 00:04:09]} {[%emt 00:00:04]} Qb6
{[%clk 00:03:22]} {[%emt 00:00:49]} 12. Qd2 {[%clk 00:03:33]} {[%emt 00:00:39]}
Nde5 {[%clk 00:02:51]} {[%emt 00:00:33]} 13. Nxe5 {[%clk 00:02:47]} {[%emt
00:00:49]} Bxe5 {[%clk 00:02:49]} {[%emt 00:00:05]} 14. Nd5 {[%clk 00:02:39]}
{[%emt 00:00:11]} Qd8 {[%clk 00:02:51]} {[%emt 00:00:01]} 15. Rb1 {[%clk
00:02:34]} {[%emt 00:00:09]} Nd4 {[%clk 00:02:52]} {[%emt 00:00:02]} 16. Bf1
{[%clk 00:02:12]} {[%emt 00:00:25]} Be6 {[%clk 00:02:27]} {[%emt 00:00:27]} 17.
b3 {[%clk 00:01:53]} {[%emt 00:00:21]} Bg7 {[%clk 00:01:49]} {[%emt 00:00:42]}
18. Bb2 {[%clk 00:01:52]} {[%emt 00:00:05]} Nc6 {[%clk 00:01:51]} 19. f4 {[%clk
00:01:34]} {[%emt 00:00:20]} Bxb2 {[%clk 00:01:51]} {[%emt 00:00:03]} 20. Rxb2
{[%clk 00:01:32]} {[%emt 00:00:06]} Bxd5 {[%clk 00:01:51]} {[%emt 00:00:03]} 21.
exd5 {[%clk 00:01:08]} {[%emt 00:00:27]} Nb8 {[%clk 00:01:36]} {[%emt
00:00:18]} 22. f5 {[%clk 00:01:10]} Nd7 {[%clk 00:01:38]} {[%emt 00:00:02]} 23.
Bd3 {[%clk 00:01:06]} Ne5 {[%clk 00:01:40]} {[%emt 00:00:07]} 24. Be4 {[%clk
00:01:07]} Qb6+ {[%clk 00:01:42]} {[%emt 00:00:04]} 25. Kh1 {[%clk 00:01:08]}
Rac8 {[%clk 00:01:44]} {[%emt 00:00:03]} 26. Rf1 {[%clk 00:01:01]} Kg7 {[%clk
00:01:46]} {[%emt 00:00:10]} 27. Qc3 {[%clk 00:00:52]} f6 {[%clk 00:01:47]}
{[%emt 00:00:15]} 28. Rbf2 {[%clk 00:00:49]} Qc5 {[%clk 00:01:45]} {[%emt
00:00:10]} 29. Qd2 {[%clk 00:00:34]} b5 {[%clk 00:01:45]} {[%emt 00:00:21]} 30.
cxb5 {[%clk 00:00:36]} axb5 {[%clk 00:01:48]} {[%emt 00:00:02]} 31. Qf4 {[%clk
00:00:31]} g5 {[%clk 00:01:42]} {[%emt 00:00:16]} 32. Qg3 {[%clk 00:00:34]} Qc3
{[%clk 00:01:42]} {[%emt 00:00:04]} 33. Qxc3 {[%clk 00:00:27]} Rxc3 {[%clk
00:01:44]} {[%emt 00:00:11]} 34. Rc2 {[%clk 00:00:29]} Rfc8 {[%clk 00:01:45]}
{[%emt 00:00:02]} 35. Rfc1 {[%clk 00:00:31]} b4 {[%clk 00:01:46]} {[%emt
00:00:03]} 36. Kg1 {[%emt 00:00:13]} h5 {[%clk 00:01:40]} 37. Kf2 {[%clk
00:00:30]} {[%emt 00:00:02]} g4 {[%clk 00:01:41]} {[%emt 00:00:02]} 38. h4
{[%clk 00:00:24]} {[%emt 00:00:09]} g3+ {[%clk 00:01:42]} {[%emt 00:00:03]} 39.
Ke2 {[%clk 00:00:24]} {[%emt 00:00:03]} Nd7 {[%clk 00:01:10]} {[%emt 00:00:35]}
40. Rxc3 {[%clk 00:00:18]} {[%emt 00:00:09]} bxc3 {[%clk 00:01:09]} {[%emt
00:00:04]} 41. Bf3 {[%clk 00:00:11]} {[%emt 00:00:10]} Nb6 {[%clk 00:00:52]}
{[%emt 00:00:19]} 42. Kd3 {[%clk 00:00:07]} {[%emt 00:00:07]} Nd7 {[%clk
00:00:49]} {[%emt 00:00:07]} 43. Be2 {[%clk 00:00:05]} {[%emt 00:00:04]} Ne5+
{[%clk 00:00:51]} {[%emt 00:00:01]} 44. Kd4 {[%clk 00:00:06]} {[%emt 00:00:02]}
c2 {[%clk 00:00:41]} {[%emt 00:00:14]} 45. Bd3 {[%clk 00:00:08]} {[%emt
00:00:01]} Nxd3 {[%clk 00:00:34]} {[%emt 00:00:09]} 46. Kxd3 {[%clk 00:00:10]}
{[%emt 00:00:01]} Rc5 {[%clk 00:00:37]} 47. Kd4 {[%clk 00:00:11]} {[%emt
00:00:02]} Kf8 {[%clk 00:00:30]} {[%emt 00:00:10]} 48. b4 {[%clk 00:00:13]}
{[%emt 00:00:01]} Rc7 {[%clk 00:00:26]} {[%emt 00:00:07]} 49. a4 {[%clk
00:00:15]} {[%emt 00:00:02]} Ke8 {[%clk 00:00:28]} 50. Kd3 {[%clk 00:00:14]}
{[%emt 00:00:04]} Rb7 {[%clk 00:00:27]} {[%emt 00:00:04]} 51. Kc3 {[%clk
00:00:13]} {[%emt 00:00:04]} Ra7 {[%clk 00:00:16]} {[%emt 00:00:14]} 52. a5
{[%clk 00:00:11]} {[%emt 00:00:05]} Kd7 {[%clk 00:00:11]} {[%emt 00:00:08]} 53.
Rxc2 {[%clk 00:00:13]} {[%emt 00:00:01]} Ra8 {[%clk 00:00:14]} 54. Kd4 {[%clk
00:00:12]} {[%emt 00:00:04]} Rg8 {[%clk 00:00:12]} {[%emt 00:00:04]} 55. Re2
{[%clk 00:00:13]} {[%emt 00:00:01]} Rb8 {[%clk 00:00:07]} {[%emt 00:00:08]} 56.
Kc4 {[%clk 00:00:12]} {[%emt 00:00:04]} Rc8+ {[%clk 00:00:10]} 57. Kb5 {[%clk
00:00:13]} {[%emt 00:00:02]} Rc1 {[%clk 00:00:07]} {[%emt 00:00:06]} 58. a6
{[%clk 00:00:12]} {[%emt 00:00:04]} Rd1 {[%clk 00:00:06]} {[%emt 00:00:04]} 59.
a7 {[%clk 00:00:11]} {[%emt 00:00:05]} Ra1 {[%clk 00:00:08]} 60. Kb6 {[%clk
00:00:13]} {[%emt 00:00:01]} 1-0